fUSD/lending_fUSD_20260314
["ID","MTS","AMOUNT","RATE_DAILY","PERIOD"]
[408370833,1773513041529,-150.0,0.00016511,2]
[408370834,1773513041538,-153.98399154,0.00016511,2]
[408370835,1773513041547,-273.67521376,0.00016511,2]
[408370836,1773513041557,-170.76199485,0.00016511,2]
[408370837,1773513041566,-155.74326597,0.00016511,2]
[408370838,1773513041576,-150.0,0.00016511,2]
[408370839,1773513041585,-237.6962081,0.00016511,2]
[408370840,1773513041594,-150.0,0.00016511,2]
[408370841,1773513041603,-150.0,0.00016511,2]
[408370842,1773513041612,-150.0,0.00016511,2]
[408370843,1773513041627,-150.0,0.00016511,2]
[408370844,1773513041637,-150.0,0.00016511,2]
[408370845,1773513041647,-200.0,0.00016511,2]
[408370846,1773513041657,-613.0,0.00016511,2]
[408370847,1773513041667,-500.0,0.00016511,2]
[408370848,1773513041676,-150.0,0.00016511,2]
[408370849,1773513041686,-500.0,0.00016511,2]
[408370850,1773513041698,-151.93684573,0.00016511,2]
[408370851,1773513041709,-500.0,0.00016511,2]
[408370852,1773513041719,-500.0,0.00016511,2]
[408370853,1773513041730,-500.0,0.00016511,2]
[408370854,1773513041739,-500.0,0.00016511,2]
[408370855,1773513041750,-150.0,0.00016511,2]
[408370856,1773513041760,-500.0,0.00016511,2]
[408370857,1773513041771,-524.0,0.00016511,2]
[408370858,1773513041782,-150.0,0.00016511,2]
[408370859,1773513041792,-500.0,0.00016511,2]
[408370860,1773513041802,-152.11749932,0.00016511,2]
[408370861,1773513041812,-150.0,0.00016511,2]
[408370862,1773513041822,-500.0,0.00016511,2]
[408370863,1773513041831,-154.60523735,0.00016511,2]
[408370864,1773513041842,-150.0,0.00016511,2]
[408370865,1773513041852,-500.0,0.00016511,2]
[408370866,1773513041862,-254.00301513,0.00016511,2]
[408370867,1773513041872,-150.0,0.00016511,2]
[408370868,1773513041882,-500.0,0.00016511,2]
[408370869,1773513041893,-150.0,0.00016511,2]
[408370870,1773513041902,-151.0,0.00016511,2]
[408370871,1773513041913,-151.0,0.00016511,2]
[408370872,1773513041923,-151.986024,0.00016511,2]
[408370873,1773513041933,-150.0,0.00016566,2]
[408370874,1773513041943,-500.0,0.00016566,2]
[408370875,1773513041952,-279.15899332,0.00016566,2]
[408370876,1773513041962,-187.38563793,0.00016566,2]
[408370877,1773513041971,-150.0,0.00016566,2]
[408370878,1773513041982,-150.0,0.00016566,2]
[408370879,1773513041992,-152.16895314,0.00016566,2]
[408370880,1773513042002,-150.0,0.00016566,2]
[408370881,1773513042011,-204.52479731,0.00016566,2]
[408370882,1773513042021,-150.0,0.00016566,2]
[408370883,1773513042030,-613.0,0.00016566,2]
[408370884,1773513042039,-500.0,0.00016566,2]
[408370885,1773513042048,-150.0,0.00016566,2]
[408370886,1773513042057,-500.0,0.00016566,2]
[408370887,1773513042067,-500.0,0.00016566,2]
[408370888,1773513042076,-500.0,0.00016566,2]
[408370889,1773513042085,-500.0,0.00016566,2]
[408370890,1773513042094,-500.0,0.00016566,2]
[408370891,1773513042104,-150.0,0.00016566,2]
[408370892,1773513042113,-500.0,0.00016566,2]
[408370893,1773513042123,-150.74235965,0.00016566,2]
[408370894,1773513042132,-500.0,0.00016566,2]
[408370895,1773513042142,-150.0,0.00016566,2]
[408370896,1773513042151,-500.0,0.00016566,2]
[408370897,1773513042160,-524.0,0.00016566,2]
[408370898,1773513042170,-150.0,0.00016566,2]
[408370899,1773513042179,-500.0,0.00016566,2]
[408370900,1773513042188,-500.0,0.00016566,2]
[408370901,1773513042197,-150.0,0.00016566,2]
[408370902,1773513042207,-151.0,0.00016566,2]
[408370903,1773513042227,-878.32,0.00016612,2]
[408370904,1773513042237,-200.0,0.00016621,2]
[408370905,1773513042248,-500.0,0.00016621,2]
[408370906,1773513042259,-150.0,0.00016621,2]
[408370907,1773513042268,-150.0,0.00016621,2]
[408370908,1773513042277,-150.0,0.00016621,2]
[408370909,1773513042286,-150.0,0.00016621,2]
[408370910,1773513042296,-613.0,0.00016621,2]
[408370911,1773513042305,-500.0,0.00016621,2]
[408370912,1773513042314,-150.0,0.00016621,2]
[408370913,1773513042324,-631.48481368,0.00016621,2]
[408370914,1773513042334,-500.0,0.00016621,2]
[408370915,1773513042343,-500.0,0.00016621,2]
[408370916,1773513042353,-202.66837309,0.00016621,2]
[408370917,1773513042363,-500.0,0.00016621,2]
[408370918,1773513042373,-150.0,0.00016621,2]
[408370919,1773513042383,-500.0,0.00016621,2]
[408370920,1773513042392,-500.0,0.00016621,2]
[408370921,1773513042402,-200.0,0.00016621,2]
[408370922,1773513042411,-500.0,0.00016621,2]
[408370923,1773513042421,-524.0,0.00016621,2]
[408370924,1773513042431,-200.0,0.00016621,2]
[408370925,1773513042441,-162.24562863,0.00016621,2]
[408370926,1773513042450,-500.0,0.00016621,2]
[408370927,1773513042459,-200.0,0.00016621,2]
[408370928,1773513042469,-782.34,0.00016623,2]
[408370929,1773513042478,-502.14581261,0.00016655,2]
[408370930,1773513042488,-500.0,0.00016655,2]
[408370931,1773513042497,-407.24,0.00016665,2]
[408370932,1773513042511,-151.0,0.00016675,2]
[408370933,1773513042530,-833.0,0.00016675,5]
[408370934,1773513042546,-596.68097798,0.00016675,2]
[408370935,1773513042555,-150.0,0.00016675,2]
[408370936,1773513042564,-273.86451249,0.00016675,2]
[408370937,1773513042574,-202.64960457,0.00016675,2]
[408370938,1773513042583,-150.0,0.00016675,2]
[408370939,1773513042592,-613.0,0.00016675,2]
[408370940,1773513042601,-300.0,0.00016675,2]
[408370941,1773513042611,-200.0,0.00016675,2]
[408370942,1773513042624,-500.0,0.00016675,2]
[408370943,1773513042634,-406.55650963,0.00016675,2]
[408370944,1773513042643,-500.0,0.00016675,2]
[408370945,1773513042654,-202.7141884,0.00016675,2]
[408370946,1773513042663,-500.0,0.00016675,2]
[408370947,1773513042672,-500.0,0.00016675,2]
[408370948,1773513042682,-500.0,0.00016675,2]
[408370949,1773513042692,-524.0,0.00016675,2]
[408370950,1773513042701,-500.0,0.00016675,2]
[408370951,1773513042711,-166.74,0.00016712,2]
[408370953,1773513042720,-150.0,0.0001673,2]
[408370954,1773513042729,-613.0,0.0001673,2]
[408370955,1773513042739,-500.0,0.0001673,2]
[408370956,1773513042748,-500.0,0.0001673,2]
[408370957,1773513042757,-500.0,0.0001673,2]
[408370958,1773513042767,-500.0,0.0001673,2]
[408370959,1773513042776,-500.0,0.0001673,2]
[408370960,1773513042786,-524.0,0.0001673,2]
[408370961,1773513042796,-500.0,0.0001673,2]
[408370962,1773513042805,-683.25075469,0.00016731,2]
[408370966,1773513042815,-256.18724957,0.00016744,2]
[408370968,1773513042824,-3291.9867821,0.0001676,2]
[408370970,1773513042833,-1335.4433565,0.0001676,2]
[408370972,1773513042841,-151.0,0.0001676,2]
[408370974,1773513042850,-173.3258536,0.00016772,2]
[408370976,1773513042859,-222.76120874,0.00016785,2]
[408370978,1773513042868,-613.0,0.00016785,2]
[408370979,1773513042878,-500.0,0.00016785,2]
[408370980,1773513042887,-500.0,0.00016785,2]
[408370981,1773513042896,-500.0,0.00016785,2]
[408370982,1773513042906,-524.0,0.00016785,2]
[408370983,1773513042915,-500.0,0.00016785,2]
[408370984,1773513042925,-300.0,0.000168,2]
[408370985,1773513042934,-2300.0,0.000168,6]
[408370986,1773513042943,-700.0,0.00016817,2]
[408370987,1773513042953,-433.0,0.00016829,2]
[408370988,1773513042963,-613.0,0.0001684,2]
[408370989,1773513042974,-500.0,0.0001684,2]
[408370990,1773513042983,-500.0,0.0001684,2]
[408370991,1773513042992,-500.0,0.0001684,2]
[408370992,1773513043162,-524.0,0.0001684,2]
[408370993,1773513043171,-540.45279181,0.0001684,2]
[408370994,1773513043181,-202.849787,0.0001684,2]
[408370995,1773513043190,-202.849787,0.0001684,2]
[408370996,1773513043199,-202.849787,0.0001684,2]
[408370997,1773513043209,-202.849787,0.0001684,2]
[408370998,1773513043218,-227.83171,0.00016885,2]
[408370999,1773513043227,-227.83171,0.00016885,2]
[408371000,1773513043236,-227.83171,0.00016885,2]
[408371001,1773513043246,-227.83171,0.00016885,2]
[408371002,1773513043255,-151.0,0.00016885,2]
[408371003,1773513043264,-204.622899,0.00016885,2]
[408371004,1773513043273,-204.622899,0.00016885,2]
[408371006,1773513043283,-204.622899,0.00016885,2]
[408371008,1773513043292,-204.622899,0.00016885,2]
[408371009,1773513043301,-525.13,0.00016886,2]
[408371010,1773513043310,-613.0,0.00016895,2]
[408371011,1773513043321,-500.0,0.00016895,2]
[408371013,1773513043330,-500.0,0.00016895,2]
[408371014,1773513043339,-500.0,0.00016895,2]
[408371015,1773513043348,-524.0,0.00016895,2]
[408371017,1773513043357,-491.79,0.00016896,2]
[408371019,1773513043367,-3500.0,0.000169,6]
[408371021,1773513043376,-298.3470627,0.000169,2]
[408371022,1773513043387,-613.0,0.00016949,2]
[408371023,1773513043396,-500.0,0.00016949,2]
[408371024,1773513043405,-500.0,0.00016949,2]
[408371025,1773513043415,-500.0,0.00016949,2]
[408371026,1773513043424,-524.0,0.00016949,2]
[408371027,1773513043433,-500.0,0.00016973,2]
[408371028,1773513043442,-500.0,0.00016973,2]
[408371029,1773513043451,-169.90870624,0.00016973,2]
[408371030,1773513043460,-500.0,0.00016973,2]
[408371032,1773513043469,-500.0,0.00016973,2]
[408371034,1773513043479,-500.0,0.00016973,2]
[408371036,1773513043488,-162.56777794,0.00016973,2]
[408371038,1773513043497,-500.23347102,0.00016973,2]
[408371039,1773513043507,-151.0,0.00016973,2]
[408371040,1773513043516,-151.0,0.00016973,2]
[408371041,1773513043525,-151.0,0.00016973,2]
[408371042,1773513043534,-151.0,0.00016973,2]
[408371043,1773513043543,-151.0,0.00016973,2]
[408371044,1773513043552,-393.568196,0.00016973,2]
[408371045,1773513043560,-393.568196,0.00016973,2]
[408371046,1773513043570,-393.568196,0.00016973,2]
[408371047,1773513043579,-393.568196,0.00016973,2]
[408371048,1773513043588,-406.21,0.00016978,2]
[408371049,1773513043597,-500.0,0.00016989,2]
[408371050,1773513043606,-500.0,0.00016999,2]
[408371051,1773513043617,-500.0,0.00016999,2]
[408371052,1773513043630,-500.0,0.00016999,2]
[408371053,1773513043639,-507.73038979,0.00016999,2]
[408371054,1773513043648,-500.0,0.00016999,2]
[408371055,1773513043659,-500.0,0.00016999,2]
[408371056,1773513043669,-500.0,0.00016999,2]
[408371057,1773513043678,-500.0,0.00016999,2]
[408371058,1773513043687,-500.0,0.00016999,2]
[408371059,1773513043697,-136129.89679528,0.00017,2]
[408371060,1773513043707,-456867.16004708,0.00017,2]
[408371061,1773513043716,-152.5029,0.00017,2]
[408371062,1773513043725,-300.0,0.00017,3]
[408371063,1773513043735,-300.0,0.00017,3]
[408371064,1773513043744,-300.0,0.00017,3]
[408371065,1773513043753,-300.0,0.00017,3]
[408371066,1773513043763,-300.0,0.00017,3]
[408371067,1773513043774,-151.0,0.00017,2]
[408371068,1773513043783,-151.0,0.00017,2]
[408371069,1773513043792,-151.0,0.00017,2]
[408371070,1773513043801,-151.0,0.00017,2]
[408371071,1773513043810,-151.0,0.00017,2]
[408371072,1773513043819,-151.0,0.00017,2]
[408371073,1773513043828,-300.0,0.00017,2]
[408371074,1773513043837,-202.849787,0.00017,2]
[408371075,1773513043846,-202.849787,0.00017,2]
[408371076,1773513043855,-202.849787,0.00017,2]
[408371077,1773513043864,-202.849787,0.00017,2]
[408371078,1773513043876,-151.0,0.00017,2]
[408371079,1773513043885,-151.0,0.00017,2]
[408371080,1773513043894,-151.0,0.00017,2]
[408371081,1773513043903,-151.0,0.00017,2]
[408371082,1773513043913,-151.0,0.00017,2]
[408371083,1773513043923,-151.0,0.00017,2]
[408371084,1773513043933,-151.0,0.00017,2]
[408371085,1773513043943,-393.568196,0.00017,2]
[408371086,1773513043954,-393.568196,0.00017,2]
[408371087,1773513043964,-393.568196,0.00017,2]
[408371088,1773513043974,-393.568196,0.00017,2]
[408371089,1773513043984,-507.0,0.00017,2]
[408371090,1773513043993,-227.83171,0.00017,2]
[408371091,1773513044002,-227.83171,0.00017,2]
[408371092,1773513044012,-227.83171,0.00017,2]
[408371093,1773513044022,-227.83171,0.00017,2]
[408371094,1773513044032,-151.0,0.00017,2]
[408371095,1773513044042,-204.622899,0.00017,2]
[408371096,1773513044052,-204.622899,0.00017,2]
[408371097,1773513044061,-204.622899,0.00017,2]
[408371098,1773513044070,-151.0,0.00017,2]
[408371099,1773513044079,-151.0,0.00017,2]
[408371100,1773513044088,-204.622899,0.00017,2]
[408371101,1773513044097,-151.0,0.00017,2]
[408371102,1773513044106,-151.0,0.00017,2]
[408371103,1773513044116,-613.0,0.00017004,2]
[408371104,1773513044126,-500.0,0.00017004,2]
[408371105,1773513044136,-290.15235611,0.00017004,2]
[408371106,1773513044147,-500.0,0.00017004,2]
[408371107,1773513044157,-524.0,0.00017004,2]
[408371108,1773513044167,-2000.0,0.00017016,2]
[408371109,1773513044177,-174.0,0.00017047,2]
[408371110,1773513044186,-182.07,0.00017058,2]
[408371111,1773513044196,-613.0,0.00017059,2]
[408371112,1773513044206,-275.35428283,0.00017059,2]
[408371113,1773513044217,-280.52031355,0.00017059,2]
[408371114,1773513044226,-524.0,0.00017059,2]
[408371115,1773513044236,-350.0,0.00017068,2]
[408371116,1773513044245,-174.0,0.00017084,2]
[408371117,1773513044254,-1064.00262309,0.000171,2]
[408371118,1773513044388,-569.0,0.00016246,2]
[408371119,1773513044408,-493.514,0.00016246,2]
[408371120,1773513044417,-10378.87720091,0.000171,2]
[408371121,1773513044426,-262.17446297,0.000171,2]
[408371122,1773513044435,-302.01,0.00017113,2]
[408371123,1773513044445,-613.0,0.00017114,2]
[408371124,1773513044455,-524.0,0.00017114,2]
[408371125,1773513044464,-168.34,0.00017138,2]
[408371126,1773513044473,-879.22,0.00017166,2]
[408371127,1773513044487,-613.0,0.00017169,2]
[408371128,1773513044497,-524.0,0.00017169,2]
[408371129,1773513044506,-137.92145389,0.00017188,2]
[408371130,1773513044649,-151.0,0.0001676,2]
[408371131,1773513044659,-1735.73854175,0.00016833,2]
[408371135,1773513045706,-5591.66476067,0.00016833,2]
[408371136,1773513045716,-36.07854611,0.00017188,2]
[408371137,1773513045726,-166.67,0.00017198,2]
[408371138,1773513045736,-1000.0,0.00017203,2]
[408371139,1773513045746,-613.0,0.00017223,2]
[408371140,1773513045755,-524.0,0.00017223,2]
[408371141,1773513045764,-613.0,0.00017278,2]
[408371142,1773513045774,-524.0,0.00017278,2]
[408371143,1773513045783,-613.0,0.00017333,2]
[408371144,1773513045794,-524.0,0.00017333,2]
[408371145,1773513045804,-587.0,0.00017367,2]
[408371146,1773513045814,-1000.0,0.0001737,2]
[408371147,1773513045825,-613.0,0.00017388,2]
[408371148,1773513045834,-524.0,0.00017388,2]
[408371149,1773513045844,-704.55,0.000174,2]
[408371150,1773513045855,-613.0,0.00017443,2]
[408371151,1773513045865,-524.0,0.00017443,2]
[408371152,1773513045874,-166.66,0.00017445,2]
[408371153,1773513045883,-613.0,0.00017497,2]
[408371154,1773513045892,-524.0,0.00017497,2]
[408371155,1773513045902,-2351.0,0.0001751,2]
[408371156,1773513045911,-500.0,0.00017521,2]
[408371157,1773513045921,-500.0,0.00017521,2]
[408371158,1773513045932,-500.0,0.00017521,2]
[408371159,1773513045942,-174.0,0.00017547,2]
[408371160,1773513045951,-613.0,0.00017552,2]
[408371161,1773513045961,-524.0,0.00017552,2]
[408371162,1773513045970,-174.0,0.00017554,2]
[408371163,1773513045979,-1189.39778362,0.00017564,2]
[408371164,1773513045988,-1000.0,0.0001757,2]
[408371165,1773513045998,-613.0,0.00017607,2]
[408371166,1773513046007,-524.0,0.00017607,2]
[408371167,1773513046016,-613.0,0.00017662,2]
[408371168,1773513046026,-524.0,0.00017662,2]
[408371169,1773513046036,-787.02435495,0.000177,2]
[408371170,1773513046045,-613.0,0.00017716,2]
[408371171,1773513046055,-524.0,0.00017716,2]
[408371172,1773513046065,-159.01060153,0.00017766,2]
[408371173,1773513046074,-613.0,0.00017771,2]
[408371174,1773513046084,-546.06804687,0.00017771,2]
[408371175,1773513046093,-174.0,0.00017776,2]
[408371176,1773513046103,-406.21,0.00017787,2]
[408371177,1773513046112,-320.77,0.000178,2]
[408371179,1773513046122,-301.98,0.000178,2]
[408371180,1773513046132,-500.0,0.00017808,2]
[408371182,1773513046142,-800.0,0.00017808,2]
[408371184,1773513046152,-1007.67186189,0.0001786,2]
[408371185,1773513046161,-500.0,0.00017863,2]
[408371186,1773513046170,-2000.0,0.00017884,2]
[408371187,1773513046179,-1229.50156929,0.0001789,2]
[408371188,1773513046189,-1077.38189453,0.0001789,2]
[408371189,1773513046199,-2722.79442182,0.000179,2]
[408371190,1773513046210,-2722.79442179,0.000179,2]
[408371191,1773513046220,-2722.79442179,0.000179,2]
[408371192,1773513046230,-2722.79442179,0.000179,2]
[408371193,1773513046240,-500.0,0.00017918,2]
[408371194,1773513046250,-200.0,0.00017972,2]
[408371195,1773513046259,-20000.0,0.0001799,2]
[408371196,1773513046268,-500.0,0.00017999,2]
[408371197,1773513046278,-1867.97816567,0.00018,5]
[408371198,1773513046287,-40763.17309685,0.00018,2]
[408371199,1773513046296,-1198.45064836,0.00018,2]
[408371201,1773513046306,-207.99873071,0.00018089,2]
[408371203,1773513046315,-151.0,0.00018091,2]
[408371205,1773513046324,-151.0,0.00018091,2]
[408371207,1773513046333,-151.0,0.00018091,2]
[408371209,1773513046342,-151.0,0.00018091,2]
[408371211,1773513046351,-151.0,0.00018091,2]
[408371213,1773513046361,-393.568196,0.00018091,2]
[408371215,1773513046370,-393.568196,0.00018091,2]
[408371217,1773513046379,-393.568196,0.00018091,2]
[408371219,1773513046388,-393.568196,0.00018091,2]
[408371221,1773513046397,-227.83171,0.00018091,2]
[408371222,1773513046406,-227.83171,0.00018091,2]
[408371224,1773513046416,-227.83171,0.00018091,2]
[408371226,1773513046424,-227.83171,0.00018091,2]
[408371228,1773513046434,-204.622899,0.00018091,2]
[408371230,1773513046443,-204.622899,0.00018091,2]
[408371232,1773513046453,-204.622899,0.00018091,2]
[408371234,1773513046463,-151.0,0.00018091,2]
[408371236,1773513046472,-204.622899,0.00018091,2]
[408371238,1773513046481,-151.0,0.00018091,2]
[408371240,1773513046490,-1788.58734616,0.000181,2]
[408371242,1773513046499,-182.07,0.00018118,2]
[408371244,1773513046508,-151.0,0.0001812,2]
[408371246,1773513046518,-736.0,0.0001812,2]
[408371248,1773513046527,-311.99809607,0.0001818,14]
[408371250,1773513046536,-1600.0,0.00018191,2]
[408371252,1773513046545,-3914.38869686,0.0001821,2]
[408371254,1773513046554,-151.0,0.0001821,2]
[408371255,1773513046563,-202.849787,0.0001821,2]
[408371256,1773513046572,-202.849787,0.0001821,2]
[408371257,1773513046581,-202.849787,0.0001821,2]
[408371258,1773513046590,-202.849787,0.0001821,2]
[408371259,1773513046599,-168.34,0.00018247,2]
[408371260,1773513046609,-151.0,0.00018493,2]
[408371261,1773513046621,-151.0,0.00018493,2]
[408371262,1773513046630,-151.0,0.00018493,2]
[408371263,1773513046639,-151.0,0.00018493,2]
[408371264,1773513046649,-151.0,0.00018493,2]
[408371265,1773513046660,-151.0,0.00018493,2]
[408371266,1773513046669,-151.0,0.00018493,2]
[408371267,1773513046678,-219.6754,0.00018493,2]
[408371268,1773513046689,-166.67,0.0001851,2]
[408371269,1773513046698,-406.21,0.00018595,2]
[408371270,1773513046707,-1275.04516815,0.00018679,2]
[408371271,1773513046716,-229.0,0.00018715,7]
[408371272,1773513046725,-11268.90705527,0.00018778,4]
[408371273,1773513046736,-151.0,0.00018778,2]
[408371274,1773513046748,-151.0,0.00018778,2]
[408371275,1773513046757,-396.21,0.00018891,2]
[408371276,1773513046766,-396.22611617,0.00018891,2]
[408371277,1773513046775,-369.03841721,0.00018891,2]
[408371278,1773513046787,-1638.67580439,0.00018904,2]
[408371279,1773513046796,-1000.0,0.0001897,2]
[408371280,1773513046806,-500.0,0.0001897,2]
[408371281,1773513046816,-5379.24855659,0.00019,7]
[408371282,1773513046825,-823.0,0.00019017,2]
[408371283,1773513046836,-161.0,0.0001904,2]
[408371284,1773513046845,-158.0,0.00019065,14]
[408371285,1773513046854,-188.0,0.00019065,14]
[408371286,1773513046863,-1000.0,0.0001907,2]
[408371287,1773513046873,-500.0,0.0001907,2]
[408371288,1773513046882,-1228.18034748,0.000191,2]
[408371289,1773513046891,-300.0,0.000191,2]
[408371290,1773513046901,-2083.19184224,0.00019106,2]
[408371291,1773513046910,-11358.1,0.00019106,2]
[408371292,1773513046919,-1000.0,0.00019178,2]
[408371293,1773513046928,-151.0,0.00019178,2]
[408371294,1773513046937,-154.242032,0.00019178,2]
[408371295,1773513046946,-328.229406,0.00019178,2]
[408371296,1773513046955,-328.229406,0.00019178,2]
[408371297,1773513046964,-328.229406,0.00019178,2]
[408371298,1773513046973,-328.229406,0.00019178,2]
[408371299,1773513047104,-328.229406,0.00019178,2]
[408371300,1773513047114,-328.229406,0.00019178,2]
[408371301,1773513047124,-328.229406,0.00019178,2]
[408371302,1773513047133,-328.229406,0.00019178,2]
[408371303,1773513047144,-328.229406,0.00019178,2]
[408371304,1773513047154,-328.229406,0.00019178,2]
[408371305,1773513047165,-328.229406,0.00019178,2]
[408371306,1773513047175,-328.229406,0.00019178,2]
[408371307,1773513047185,-328.229406,0.00019178,2]
[408371308,1773513047194,-328.229406,0.00019178,2]
[408371309,1773513047203,-328.229406,0.00019178,2]
[408371310,1773513047213,-328.229406,0.00019178,2]
[408371311,1773513047223,-151.0,0.00019178,2]
[408371312,1773513047233,-151.0,0.00019178,2]
[408371313,1773513047242,-151.0,0.00019178,2]
[408371314,1773513047252,-151.0,0.00019178,2]
[408371315,1773513047262,-151.0,0.00019178,2]
[408371316,1773513047271,-151.0,0.00019178,2]
[408371317,1773513047281,-151.0,0.00019178,2]
[408371318,1773513047290,-151.0,0.00019178,2]
[408371319,1773513047300,-151.0,0.00019178,2]
[408371320,1773513047311,-151.0,0.00019178,2]
[408371321,1773513047320,-151.0,0.00019178,2]
[408371322,1773513047329,-151.0,0.00019178,2]
[408371323,1773513047339,-151.0,0.00019178,2]
[408371324,1773513047349,-151.0,0.00019178,2]
[408371325,1773513047358,-151.0,0.00019178,2]
[408371326,1773513047368,-151.0,0.00019178,2]
[408371327,1773513047377,-151.0,0.00019178,2]
[408371328,1773513047386,-151.0,0.00019178,2]
[408371329,1773513047395,-151.0,0.00019178,3]
[408371330,1773513047405,-151.0,0.00019178,3]
[408371331,1773513047414,-151.0,0.00019178,3]
[408371332,1773513047423,-151.0,0.00019178,3]
[408371333,1773513047433,-151.0,0.00019178,3]
[408371334,1773513047442,-151.0,0.00019178,3]
[408371335,1773513047450,-151.0,0.00019178,3]
[408371336,1773513047460,-151.0,0.00019178,3]
[408371337,1773513047469,-151.0,0.00019178,3]
[408371338,1773513047478,-151.0,0.00019178,3]
[408371339,1773513047487,-151.0,0.00019178,3]
[408371340,1773513047496,-151.0,0.00019178,3]
[408371341,1773513047506,-151.0,0.00019178,3]
[408371342,1773513047515,-151.0,0.00019178,3]
[408371343,1773513047524,-151.0,0.00019178,3]
[408371344,1773513047534,-151.0,0.00019178,3]
[408371345,1773513047543,-151.0,0.00019178,3]
[408371346,1773513047552,-151.0,0.00019178,3]
[408371347,1773513047562,-151.0,0.00019178,3]
[408371348,1773513047570,-151.0,0.00019178,3]
[408371349,1773513047580,-151.0,0.00019178,3]
[408371350,1773513047589,-151.0,0.00019178,3]
[408371351,1773513047597,-151.0,0.00019178,3]
[408371352,1773513047607,-151.0,0.00019178,3]
[408371353,1773513047616,-2000.0,0.000192,2]
[408371354,1773513047630,-1043.0,0.00019246,2]
[408371355,1773513047639,-3292.0,0.00019261,2]
[408371356,1773513047649,-347.19864037,0.00019278,2]
[408371357,1773513047659,-150.0,0.00019306,2]
[408371358,1773513047668,-268.0,0.00019306,2]
[408371359,1773513047677,-418.0,0.00019378,2]
[408371360,1773513047687,-151.72,0.00019385,2]
[408371361,1773513047699,-406.21,0.00019404,2]
[408371362,1773513047708,-347.19864037,0.00019468,2]
[408371363,1773513047717,-10314.35239496,0.000195,2]
[408371364,1773513047730,-3756.54726313,0.000195,2]
[408371365,1773513047739,-1252.0,0.00019513,2]
[408371366,1773513047749,-168.34,0.00019567,2]
[408371367,1773513047758,-151.72,0.00019593,2]
[408371368,1773513047767,-499.99,0.000196,2]
[408371369,1773513047777,-280.31,0.000196,2]
[408371370,1773513047786,-953.42614139,0.00019609,2]
[408371371,1773513047794,-347.19864037,0.00019659,2]
[408371372,1773513047803,-2000.0,0.00019673,2]
[408371373,1773513047813,-4700.0,0.000197,7]
[408371374,1773513047823,-8112.93,0.00019711,2]
[408371375,1773513047832,-168.3331539,0.00019779,2]
[408371376,1773513047842,-150.0,0.000198,30]
[408371377,1773513047851,-5900.0,0.000198,7]
[408371378,1773513047861,-160.0,0.00019848,2]
[408371379,1773513047870,-328.229406,0.00019866,2]
[408371380,1773513047879,-328.229406,0.00019866,2]
[408371381,1773513047888,-328.229406,0.00019866,2]
[408371382,1773513047897,-328.229406,0.00019866,2]
[408371383,1773513047906,-151.0,0.00019866,2]
[408371384,1773513047915,-151.0,0.00019866,2]
[408371385,1773513047925,-151.0,0.00019866,2]